bitfinex/quotes_BTCUSD_20241202
["timestamp","ask_amount","ask_price","bid_price","bid_amount"]
[1733151196690,0.002,96462.0,96456.0,0.0801]
[1733151196922,0.17474521,96464.0,96456.0,0.0801]
[1733151197198,0.002,96467.0,96456.0,0.0801]
[1733151197199,0.207346,96458.0,96456.0,0.0801]
[1733151197431,0.002,96467.0,96450.0,0.0453]
[1733151197432,0.17474521,96462.0,96450.0,0.0453]
[1733151197671,0.207367,96447.0,96443.0,0.0757]
[1733151197904,0.17474521,96457.0,96435.0,0.0486]
[1733151197905,0.17474521,96445.0,96435.0,0.0486]
[1733151198383,0.207374,96444.0,96435.0,0.0486]
[1733151198613,0.17474521,96445.0,96435.0,0.0486]
[1733151198849,0.17474521,96445.0,96443.0,0.004]
[1733151199548,0.17474521,96445.0,96436.0,0.207391]
[1733151199797,0.001,96444.0,96440.0,0.20738]
[1733151200036,0.001,96444.0,96435.0,0.0606]
[1733151200037,0.001,96444.0,96437.0,0.207388]
[1733151200275,0.001,96444.0,96443.0,0.008]
[1733151200532,0.001,96444.0,96443.0,0.03283503]
[1733151200777,0.001,96444.0,96443.0,0.13568024]
[1733151201021,0.2073,96479.0,96443.0,0.13568024]
[1733151201022,0.17474521,96464.0,96448.0,0.207363]
[1733151201263,0.00469159,96477.0,96461.0,0.207336]
[1733151201264,0.0099999,96466.0,96461.0,0.207336]
[1733151201740,0.17474521,96469.0,96461.0,0.207336]
[1733151202202,0.17474521,96469.0,96458.0,0.207343]
[1733151202434,0.17474521,96472.0,96465.0,0.207327]
[1733151202666,0.0017314,96473.0,96465.0,0.414655]
[1733151202893,0.17474521,96472.0,96462.0,0.0472]
[1733151203130,0.002,96469.0,96462.0,0.254534]
[1733151203348,0.002,96469.0,96466.0,0.207326]
[1733151203589,0.002,96469.0,96462.0,0.254534]
[1733151203845,0.002,96469.0,96466.0,0.207326]
[1733151204076,0.002,96469.0,96468.0,0.230322]
[1733151204297,0.2090434,96473.0,96467.0,0.08]
[1733151204533,0.17647661,96473.0,96462.0,0.0472]
[1733151204764,0.207318,96470.0,96462.0,0.0472]
[1733151204993,0.00304178,96471.0,96462.0,0.0472]
[1733151205250,0.00104178,96471.0,96462.0,0.0472]
[1733151205476,0.00204178,96471.0,96467.0,0.003]
[1733151205733,0.00204178,96471.0,96467.0,0.012]
[1733151205950,0.00104178,96471.0,96464.0,0.207329]
[1733151206196,0.00104178,96471.0,96462.0,0.0502]
[1733151206441,0.00104178,96471.0,96467.0,0.207323]
[1733151206664,0.00104178,96471.0,96468.0,0.00183452]
[1733151207162,0.00104178,96471.0,96469.0,0.20732]
[1733151208298,0.00104178,96471.0,96470.0,0.00183444]
[1733151209056,0.00104178,96471.0,96469.0,0.21332]
[1733151209057,0.00104178,96471.0,96469.0,0.006]
[1733151209275,0.00104178,96471.0,96432.0,0.0828]
[1733151209276,0.207368,96447.0,96432.0,0.0828]
[1733151209536,0.207369,96447.0,96432.0,0.0828]
[1733151209752,0.00469159,96450.0,96432.0,0.0828]
[1733151209976,0.207363,96449.0,96433.0,0.207397]
[1733151210220,0.207374,96445.0,96430.0,0.0017322]
[1733151210466,0.00469159,96441.0,96430.0,0.0017322]
[1733151210725,0.0098913,96452.0,96443.0,0.207374]
[1733151210950,0.0098913,96452.0,96450.0,0.20736]
[1733151211188,0.17474521,96464.0,96452.0,0.207357]
[1733151211419,0.00994,96470.0,96453.0,0.00183485]
[1733151211658,0.17474521,96469.0,96454.0,0.04703471]
[1733151211893,0.17474521,96469.0,96459.0,0.207341]
[1733151212148,0.17474521,96469.0,96454.0,0.0452]
[1733151212378,0.17474521,96469.0,96455.0,0.20735]
[1733151212626,0.17474521,96469.0,96455.0,0.4147]
[1733151212855,0.17474521,96469.0,96455.0,0.00183474]
[1733151213084,0.17474521,96469.0,96456.0,0.207348]
[1733151213317,0.207322,96468.0,96454.0,0.0452]
[1733151213506,0.17474521,96469.0,96455.0,0.20735]
[1733151213792,0.17474521,96469.0,96454.0,0.0452]
[1733151214023,0.17474521,96469.0,96459.0,0.002]
[1733151214250,0.17474521,96469.0,96459.0,0.004]
[1733151214485,0.17474521,96469.0,96460.0,0.207338]
[1733151214734,0.17474521,96469.0,96455.0,0.00383474]
[1733151214961,0.00017605,96470.0,96467.0,0.414647]
[1733151215193,0.00017605,96470.0,96469.0,0.20732]
[1733151215414,0.00017605,96470.0,96469.0,0.20915446]
[1733151215641,0.00017605,96470.0,96469.0,0.20915448]
[1733151216127,0.00017605,96470.0,96464.0,0.22803917]
[1733151216128,0.00017605,96470.0,96464.0,0.02070917]
[1733151216364,0.00017605,96470.0,96461.0,0.207336]
[1733151216592,0.00017605,96470.0,96462.0,0.00183459]
[1733151216834,0.00017605,96470.0,96466.0,0.207326]
[1733151217085,0.00017605,96470.0,96467.0,0.00383449]
[1733151217338,0.00017605,96470.0,96469.0,0.023]
[1733151217569,0.00017605,96470.0,96469.0,0.12767963]
[1733151217803,0.00017605,96470.0,96469.0,0.12867963]
[1733151218038,0.00017605,96470.0,96469.0,0.12767963]
[1733151218516,0.00017605,96470.0,96469.0,0.22957611]
[1733151218738,0.00017605,96470.0,96469.0,0.12784521]
[1733151218974,0.00017605,96470.0,96469.0,0.12884521]
[1733151219227,0.00017605,96470.0,96469.0,0.13067956]
[1733151219474,0.00017605,96470.0,96469.0,0.20757956]
[1733151219712,0.00017605,96470.0,96469.0,0.35811102]
[1733151219927,0.00017605,96470.0,96469.0,0.35627667]
[1733151220388,0.00017605,96470.0,96469.0,0.25344521]
[1733151222043,0.00104215,96470.0,96469.0,0.25344521]
[1733151223930,0.00104215,96470.0,96469.0,0.44875362]
[1733151224614,0.0008657,96471.0,96470.0,0.40262641]
[1733151224844,0.0008657,96471.0,96470.0,0.52847162]
[1733151225077,0.0008657,96471.0,96470.0,0.65655787]
[1733151225318,0.0008655,96493.0,96483.0,0.32789]
[1733151225539,0.0008655,96493.0,96492.0,0.40257941]
[1733151225763,0.0008655,96493.0,96492.0,0.52842462]
[1733151226491,0.0008655,96493.0,96492.0,0.54951031]
[1733151226734,0.0008655,96493.0,96492.0,0.62654081]
[1733151227232,0.0008655,96493.0,96492.0,0.60856233]
[1733151227986,0.0018655,96493.0,96492.0,0.61356233]
[1733151228228,0.0018655,96493.0,96492.0,0.62256233]
[1733151228476,0.0008655,96493.0,96492.0,0.23735669]
[1733151228701,0.0018655,96493.0,96492.0,0.24235669]
[1733151228929,0.0018655,96493.0,96492.0,0.014]
[1733151230418,0.19928078,96493.0,96492.0,0.014]
[1733151231132,0.17474521,96489.0,96469.0,0.07607605]
[1733151231355,0.207289,96484.0,96470.0,0.2091524]
[1733151231598,0.207289,96484.0,96469.0,0.07607605]
[1733151231873,0.19741528,96489.0,96469.0,0.00017605]
[1733151232112,0.207294,96482.0,96469.0,0.00017605]
[1733151232853,0.17474521,96489.0,96469.0,0.00201052]
[1733151233080,0.207279,96488.0,96469.0,0.00201052]
[1733151233307,0.207293,96482.0,96469.0,0.00201052]
[1733151233565,0.19741528,96489.0,96469.0,0.00017605]
[1733151233566,0.207307,96475.0,96469.0,0.00017605]
[1733151233800,0.207298,96480.0,96469.0,0.00017605]
[1733151234050,0.19741528,96489.0,96469.0,0.00017605]
[1733151234051,0.17474521,96489.0,96469.0,0.00217605]
[1733151234282,0.17474521,96489.0,96470.0,0.10284521]
[1733151234501,0.17474521,96489.0,96471.0,0.20915034]
[1733151234751,0.0098311,96490.0,96481.0,0.207293]
[1733151234997,0.0098311,96490.0,96472.0,0.10284521]
[1733151234998,0.0098311,96490.0,96474.0,0.046]
[1733151235220,0.0008655,96493.0,96489.0,0.207276]
[1733151235478,0.0008655,96493.0,96475.0,0.18277944]
[1733151235479,0.0008655,96493.0,96485.0,0.207285]
[1733151235928,0.0008655,96493.0,96486.0,0.2280115]
[1733151236151,0.0008655,96493.0,96491.0,0.207273]
[1733151236632,0.0008655,96493.0,96487.0,0.20911518]
[1733151236633,0.0008655,96493.0,96487.0,0.00183418]
[1733151236853,0.0008655,96493.0,96488.0,0.207279]
[1733151237078,0.0008655,96493.0,96487.0,0.00183418]
[1733151237319,0.0008655,96493.0,96488.0,0.207279]
[1733151238018,0.0008655,96493.0,96488.0,0.208279]
[1733151238244,0.0008655,96493.0,96488.0,0.001]
[1733151238472,0.0008655,96493.0,96488.0,0.208278]
[1733151238700,0.0008655,96493.0,96488.0,0.209278]
[1733151238950,0.0758655,96500.0,96488.0,0.209278]
[1733151239178,0.0758655,96500.0,96490.0,0.207275]
[1733151239476,0.0758655,96500.0,96491.0,0.00183411]
[1733151239935,0.0758655,96500.0,96497.0,0.207259]
[1733151240398,0.0768655,96500.0,96497.0,0.22816831]
[1733151240626,0.0768655,96500.0,96497.0,0.02090931]
[1733151241110,0.0768655,96500.0,96487.0,0.20911507]
[1733151241347,0.2831195,96500.0,96487.0,0.00183407]
[1733151241577,0.02267007,96499.0,96476.0,0.207305]
[1733151241827,0.207279,96489.0,96475.0,0.0781]
[1733151242091,0.207279,96489.0,96475.0,0.20193994]
[1733151242559,0.207271,96492.0,96475.0,0.20193994]
[1733151243021,0.207271,96492.0,96475.0,0.40924694]
[1733151243022,0.207271,96492.0,96475.0,0.20193994]
[1733151243251,0.207273,96491.0,96475.0,0.20193994]
[1733151243501,0.19741528,96489.0,96469.0,0.00017605]
[1733151243721,0.207293,96482.0,96475.0,0.002]
[1733151244199,0.2073,96479.0,96469.0,0.00017605]
[1733151244426,0.2073,96479.0,96475.0,0.001]
[1733151244670,0.207293,96482.0,96469.0,0.00017605]
[1733151244903,0.207294,96481.0,96475.0,0.001]
[1733151245132,0.207294,96481.0,96476.0,0.001731]
[1733151245377,0.34741528,96477.0,96476.0,0.001731]
[1733151245626,0.68306049,96477.0,96476.0,0.001731]
[1733151245854,0.69275535,96477.0,96476.0,0.001731]
[1733151246080,2.37288135,96477.0,96476.0,0.001731]
[1733151246311,0.19741528,96470.0,96469.0,0.00017605]
[1733151246552,4.78198235,96470.0,96469.0,5e-08]
[1733151246797,1.74517589,96470.0,96469.0,5e-08]
[1733151247302,0.55481728,96431.0,96407.0,0.0018356]
[1733151247534,0.17474521,96431.0,96412.0,0.207442]
[1733151247778,0.207391,96437.0,96412.0,0.207442]
[1733151247779,0.17474521,96434.0,96413.0,0.00183542]
[1733151248036,0.17474521,96434.0,96408.0,0.00183558]
[1733151248037,0.12551528,96431.0,96408.0,0.00183558]
[1733151248270,0.207397,96433.0,96408.0,0.00183558]
[1733151248520,0.17474521,96434.0,96411.0,0.207444]
[1733151248766,0.17474521,96434.0,96416.0,0.207434]
[1733151249003,0.17474521,96434.0,96412.0,0.00183541]
[1733151249004,0.207397,96433.0,96417.0,0.00183541]
[1733151249231,0.414795,96433.0,96417.0,0.00183541]
[1733151249464,0.17474521,96431.0,96409.0,0.00183542]
[1733151249931,0.17474521,96431.0,96418.0,0.02024621]
[1733151250421,0.208397,96433.0,96418.0,0.01697841]
[1733151250422,0.38214921,96430.0,96418.0,0.01697841]
[1733151250680,0.207423,96421.0,96418.0,0.01756606]
[1733151250917,0.19741528,96419.0,96418.0,0.00058765]
[1733151251163,0.30026049,96419.0,96418.0,0.00058765]
[1733151252085,0.17474521,96419.0,96418.0,0.00058765]
[1733151252310,0.38217221,96419.0,96418.0,0.00058765]
[1733151253236,0.65768749,96419.0,96418.0,0.00058765]
[1733151253469,0.65868749,96419.0,96418.0,0.00058765]
[1733151253917,0.65868749,96419.0,96418.0,0.00558765]
[1733151254140,0.65768749,96419.0,96418.0,0.00558765]
[1733151254376,0.65768749,96419.0,96418.0,0.00058765]
[1733151254599,0.66268749,96419.0,96418.0,0.00058765]
[1733151254835,0.76551895,96419.0,96418.0,0.00058765]
[1733151255130,0.76251895,96419.0,96418.0,0.00058765]
[1733151255387,1.21677395,96419.0,96418.0,0.00058765]
[1733151255610,1.07077295,96419.0,96418.0,0.00058765]
[1733151256338,1.06877295,96419.0,96418.0,0.00058765]
[1733151256570,1.06577295,96419.0,96418.0,0.00058765]
[1733151256795,1.07377295,96419.0,96418.0,0.00058765]
[1733151257023,0.97094149,96419.0,96418.0,0.00058765]
[1733151257248,0.96794149,96419.0,96418.0,0.00058765]
[1733151257487,0.96794149,96419.0,96418.0,0.00231845]
[1733151257739,0.97094149,96419.0,96418.0,0.00231845]
[1733151259082,0.89667549,96419.0,96418.0,0.00231845]
[1733151259322,0.68924849,96419.0,96418.0,0.00231845]
[1733151259551,0.008,96419.0,96418.0,0.00231845]
[1733151260033,0.003,96419.0,96418.0,0.00231845]
[1733151260279,0.15,96425.0,96418.0,0.00231845]
[1733151260515,0.008,96419.0,96418.0,0.00231845]
[1733151260738,0.003,96419.0,96418.0,0.00231845]
[1733151260971,0.15,96425.0,96418.0,0.00231845]
[1733151261231,0.15,96425.0,96418.0,0.00831845]
[1733151261464,0.15,96425.0,96418.0,0.00231845]
[1733151262184,0.15,96425.0,96419.0,0.14974521]
[1733151262422,0.15,96425.0,96420.0,0.07833531]
[1733151262645,0.15,96425.0,96422.0,0.20742]
[1733151262871,0.15,96425.0,96422.0,0.414841]
[1733151263333,0.15,96425.0,96424.0,0.230417]
[1733151263572,0.15,96425.0,96424.0,0.33326221]
[1733151263804,0.15,96425.0,96424.0,0.02092772]
[1733151265234,0.15,96425.0,96422.0,0.004]
[1733151265976,0.151,96425.0,96424.0,0.003]
[1733151266471,0.15,96425.0,96420.0,0.0765]
[1733151266742,0.15,96425.0,96424.0,0.009]
[1733151266979,0.15,96425.0,96422.0,0.005]
[1733151266980,0.23008707,96424.0,96422.0,0.005]
[1733151267252,0.23009107,96422.0,96418.0,0.00231845]
[1733151267615,0.34741528,96419.0,96418.0,0.00231845]
[1733151267885,0.55309195,96419.0,96418.0,0.00231845]
[1733151268354,2.49991295,96419.0,96418.0,0.00231845]
[1733151268576,2.39999695,96419.0,96418.0,0.00231845]
[1733151268839,2.20487595,96419.0,96418.0,0.00231845]
[1733151269087,2.21450668,96419.0,96418.0,0.00231845]
[1733151269302,2.19039668,96419.0,96418.0,0.00231845]
[1733151269564,1.59132275,96419.0,96418.0,0.00231845]
[1733151269801,1.17986675,96419.0,96418.0,0.00231845]
[1733151270049,1.17123549,96419.0,96418.0,0.00331845]
[1733151270266,1.17910169,96419.0,96418.0,0.00331845]
[1733151272039,1.18874207,96419.0,96418.0,0.00331845]
[1733151272523,1.28193315,96419.0,96418.0,0.00331845]
[1733151272736,1.29158015,96419.0,96418.0,0.00331845]
[1733151273441,0.88126269,96419.0,96418.0,0.00331845]
[1733151273722,0.87248769,96419.0,96418.0,0.00331845]
[1733151273948,0.45912669,96419.0,96418.0,0.00331845]
[1733151274178,0.20628148,96419.0,96418.0,0.00331845]
[1733151275115,0.19928148,96419.0,96418.0,0.00331845]
[1733151275581,0.20528148,96419.0,96418.0,0.00231845]
[1733151275805,0.20628148,96419.0,96418.0,0.00331845]
[1733151276048,0.19928148,96419.0,96418.0,0.00331845]
[1733151276270,0.19928148,96419.0,96418.0,0.00231845]
[1733151276491,0.20028148,96419.0,96418.0,0.00231845]
[1733151276720,0.19828148,96419.0,96418.0,0.00231845]
[1733151277201,0.35028148,96419.0,96418.0,0.00231845]
[1733151278421,0.34928148,96419.0,96418.0,0.00231845]
[1733151278662,0.54828114,96419.0,96418.0,0.00231845]
[1733151278890,0.45212669,96419.0,96418.0,0.00231845]
[1733151279103,0.45412669,96419.0,96418.0,0.00231845]
[1733151279596,0.60412669,96419.0,96418.0,0.00231845]
[1733151279838,1.69834169,96419.0,96418.0,0.00231845]
[1733151280101,1.86058369,96419.0,96418.0,0.00231845]
[1733151280311,0.17474521,96400.0,96399.0,0.7517314]
[1733151280520,0.53221321,96400.0,96399.0,0.75231963]
[1733151280749,0.55488328,96400.0,96399.0,0.75231963]
[1733151281457,0.65772849,96400.0,96399.0,0.75231963]
[1733151282362,0.91489649,96400.0,96399.0,0.75231963]
[1733151282817,0.81257749,96400.0,96399.0,0.75231963]
[1733151283045,0.76307749,96400.0,96399.0,0.75231963]
[1733151283277,0.76707749,96400.0,96399.0,0.75231963]
[1733151283765,0.65972849,96400.0,96399.0,0.75231963]
[1733151283948,0.86291049,96400.0,96399.0,0.75231963]
[1733151284192,0.55988328,96400.0,96399.0,0.75231963]
[1733151284433,0.53721321,96400.0,96399.0,0.75231963]
[1733151284677,0.005,96400.0,96399.0,0.75231963]
[1733151284892,0.005,96400.0,96399.0,0.95582463]
[1733151285109,0.005,96400.0,96399.0,1.08166984]
[1733151285336,0.005,96400.0,96399.0,1.25899977]
[1733151285589,0.1606783,96419.0,96408.0,0.20745]
[1733151285870,0.1606783,96419.0,96409.0,0.00183561]
[1733151286107,0.1508662,96419.0,96405.0,0.207457]
[1733151286358,0.1508662,96419.0,96408.0,0.00183561]
[1733151286568,0.1508662,96419.0,96409.0,0.31029421]
[1733151286816,0.1508662,96419.0,96414.0,0.207436]
[1733151287074,0.1508662,96419.0,96412.0,0.05143557]
[1733151287294,0.1508662,96419.0,96417.0,0.20743]
[1733151287512,0.0008662,96419.0,96417.0,0.20743]
[1733151287770,0.0008662,96419.0,96418.0,0.00183539]
[1733151287985,0.0008662,96419.0,96418.0,0.1276806]
[1733151288209,0.0008662,96419.0,96418.0,0.3351106]
[1733151288434,0.0008662,96419.0,96418.0,0.12584521]
[1733151288926,0.0008662,96419.0,96418.0,0.12768051]
[1733151289363,0.0008662,96419.0,96418.0,0.12968051]
[1733151289364,0.0018662,96419.0,96418.0,0.12968051]
[1733151289632,0.0018662,96419.0,96418.0,0.13868051]
[1733151289876,0.0008662,96419.0,96418.0,0.13484521]
[1733151290090,0.0018662,96419.0,96418.0,0.13684521]
[1733151290313,0.0018662,96419.0,96418.0,0.31601049]
[1733151290548,0.0018662,96419.0,96418.0,0.48620911]
[1733151290769,0.0018662,96419.0,96418.0,0.53120911]
[1733151291726,0.0018662,96419.0,96418.0,0.55168602]
[1733151291951,0.0098621,96445.0,96430.0,0.17732993]
[1733151292169,0.09247969,96479.0,96419.0,0.207427]
[1733151292170,0.32474521,96462.0,96444.0,0.1282]
[1733151292400,0.02267007,96463.0,96444.0,0.1282]
[1733151292401,0.207342,96459.0,96444.0,0.1282]
[1733151292656,0.17474521,96457.0,96446.0,0.207369]
[1733151292867,0.17474521,96457.0,96447.0,0.00183493]
[1733151293124,0.00998,96461.0,96447.0,0.00183493]
[1733151293373,0.17474521,96457.0,96447.0,0.00183493]
[1733151293609,0.17474521,96457.0,96445.0,0.01524315]
[1733151294311,0.17474521,96457.0,96445.0,0.00242315]
[1733151294521,0.17474521,96457.0,96446.0,0.02041671]
[1733151294749,0.17474521,96457.0,96447.0,0.002]
[1733151295193,0.0099496,96467.0,96451.0,0.207358]
[1733151295442,0.17474521,96458.0,96452.0,0.03312082]
[1733151295661,0.37998207,96473.0,96450.0,0.00183482]
[1733151295662,0.17474521,96465.0,96450.0,0.00183482]
[1733151295912,0.17474521,96465.0,96449.0,0.230363]
[1733151295913,0.17474521,96465.0,96451.0,0.00183475]
[1733151296151,0.17474521,96465.0,96449.0,0.023]
[1733151296395,0.17474521,96465.0,96449.0,0.33320621]
[1733151296903,0.17474521,96465.0,96449.0,0.33320821]
[1733151297600,0.17474521,96464.0,96445.0,0.00058823]
[1733151297841,0.17474521,96452.0,96445.0,0.00058823]
[1733151298741,0.02267007,96446.0,96445.0,0.00058823]
[1733151298988,0.17474521,96451.0,96445.0,0.00058823]
[1733151299196,0.207367,96447.0,96446.0,0.005]
[1733151299442,0.207367,96447.0,96445.0,0.00058823]
[1733151299443,0.17474521,96446.0,96445.0,0.00058823]
[1733151299935,0.19741528,96446.0,96445.0,0.00558823]
[1733151300146,0.19741528,96446.0,96445.0,0.00058823]
[1733151300378,0.45026049,96446.0,96445.0,0.00058823]
[1733151301039,0.45026049,96446.0,96445.0,0.00158823]
[1733151301536,0.45026049,96446.0,96445.0,0.00058823]
[1733151301750,0.19841528,96446.0,96445.0,0.00058823]
[1733151302243,0.45309613,96446.0,96445.0,0.00058823]
[1733151302451,0.45026049,96446.0,96445.0,0.00058823]
[1733151303138,0.53675934,96446.0,96445.0,0.00058823]
[1733151303578,2.09102534,96446.0,96445.0,0.00058823]
[1733151303837,2.37392534,96446.0,96445.0,0.00058823]
[1733151304238,1.28153534,96446.0,96445.0,0.00058823]
[1733151304445,1.27953534,96446.0,96445.0,0.00058823]
[1733151304798,1.28253534,96446.0,96445.0,0.00058823]
[1733151305246,1.27953534,96446.0,96445.0,0.00158823]
[1733151305483,1.47953534,96446.0,96445.0,2.3e-07]
[1733151305719,1.13544712,96446.0,96445.0,2.3e-07]
[1733151305951,0.55486428,96409.0,96399.0,0.7517314]
[1733151306165,0.55486428,96409.0,96408.0,0.00231897]
[1733151306166,0.65770949,96409.0,96408.0,0.00231897]
[1733151307255,2.85058649,96409.0,96408.0,0.00231897]
[1733151307479,1.41709749,96409.0,96408.0,0.00231897]
[1733151307696,1.15516449,96409.0,96408.0,0.00231897]
[1733151307902,1.15516449,96409.0,96408.0,0.00631897]
[1733151307903,1.87836889,96409.0,96408.0,0.00631897]
[1733151308372,1.87836889,96409.0,96408.0,0.00231897]
[1733151308577,1.83116449,96409.0,96408.0,0.00231897]
[1733151308785,1.80816449,96409.0,96408.0,0.00231897]
[1733151309011,1.80516449,96409.0,96408.0,0.00231897]
[1733151309285,1.81316449,96409.0,96408.0,0.00231897]
[1733151309966,0.55488328,96400.0,96399.0,0.74674127]
[1733151310211,0.65772849,96400.0,96399.0,0.74733066]
[1733151310434,2.13402949,96400.0,96399.0,0.74733066]
[1733151310674,1.92060749,96400.0,96399.0,0.74733066]
[1733151311117,2.08666049,96400.0,96399.0,0.74733066]
[1733151311340,2.12553228,96400.0,96399.0,0.74733066]
[1733151311792,2.12253228,96400.0,96399.0,0.74733066]
[1733151312006,2.12853228,96400.0,96399.0,0.74833066]
[1733151312224,1.89266049,96400.0,96399.0,0.74833066]
[1733151312434,1.23027649,96400.0,96399.0,0.74833066]
[1733151312680,0.82171449,96400.0,96399.0,0.74833066]
[1733151313324,0.66672849,96400.0,96399.0,0.74833066]
[1733151313536,0.82850249,96400.0,96399.0,0.74833066]
[1733151313977,0.80656249,96400.0,96399.0,0.74833066]
[1733151314466,0.66672849,96400.0,96399.0,0.74833066]
[1733151314696,0.88107199,96400.0,96399.0,0.74833066]
[1733151314940,0.74259399,96400.0,96399.0,0.74833066]
[1733151315839,1.54139945,96400.0,96399.0,0.74833066]
[1733151316063,1.52062845,96400.0,96399.0,0.74833066]
[1733151316498,1.34803445,96400.0,96399.0,0.74833066]
[1733151316757,1.14329899,96400.0,96399.0,0.74833066]
[1733151316989,0.90998392,96400.0,96399.0,0.74833066]
[1733151317195,0.48974878,96400.0,96399.0,0.74833066]
[1733151317663,0.0848655,96400.0,96399.0,0.74833066]
[1733151318104,0.0818655,96400.0,96399.0,0.74833066]
[1733151318597,0.0758655,96400.0,96399.0,0.74733066]
[1733151318805,0.27328078,96400.0,96399.0,0.74733066]
[1733151319043,0.42428078,96400.0,96399.0,0.74733066]
[1733151319244,0.42328078,96400.0,96399.0,0.74733066]
[1733151320156,0.52612599,96400.0,96399.0,0.74733066]
[1733151320377,0.83774999,96400.0,96399.0,0.74733066]
[1733151320592,0.94058145,96400.0,96399.0,0.74733066]
[1733151320835,0.94058145,96400.0,96399.0,0.75033066]
[1733151321222,0.94058145,96400.0,96399.0,0.74733066]
[1733151321449,0.94058145,96400.0,96399.0,0.75033066]
[1733151321656,1.14058145,96400.0,96399.0,0.75033066]
[1733151321877,1.14058145,96400.0,96399.0,0.74733066]
[1733151322122,1.14158145,96400.0,96399.0,0.74733066]
[1733151322347,1.14658145,96400.0,96399.0,0.74833066]
[1733151322578,1.14558145,96400.0,96399.0,0.74833066]
[1733151322797,0.94558145,96400.0,96399.0,0.74833066]
[1733151323010,1.36858145,96400.0,96399.0,0.70683666]
[1733151323209,1.26574999,96400.0,96399.0,0.70683666]
[1733151324066,1.26774999,96400.0,96399.0,0.70683666]
[1733151325046,0.95612599,96400.0,96399.0,0.70683666]
[1733151325288,0.95612599,96400.0,96399.0,0.60310166]
[1733151325289,2.92290745,96400.0,96399.0,0.60310166]
[1733151325980,2.94349948,96400.0,96399.0,0.54086066]
[1733151326230,2.94349948,96400.0,96399.0,0.52011366]
[1733151326687,2.89293845,96400.0,96399.0,0.52011366]
[1733151326933,2.88171945,96400.0,96399.0,0.49936666]
[1733151327362,3.14351945,96400.0,96399.0,0.28827866]
[1733151327825,3.14351945,96400.0,96399.0,0.26753166]
[1733151328025,3.14351945,96400.0,96399.0,0.24678466]
[1733151328544,3.14351945,96400.0,96399.0,0.18453966]
[1733151328763,3.14438445,96400.0,96399.0,0.12229266]
[1733151328981,3.69178445,96400.0,96399.0,0.08079466]
[1733151329196,3.74649314,96400.0,96399.0,0.08079466]
[1733151329625,3.74149314,96400.0,96399.0,0.03829666]
[1733151329877,1.22790128,96392.0,96391.0,6e-08]
[1733151330114,2.00657795,96392.0,96391.0,0.0005904]
[1733151330567,0.59741528,96387.0,96386.0,6e-07]
[1733151330789,1.08075649,96387.0,96386.0,5.3e-07]
[1733151331628,1.08075649,96387.0,96363.0,2.3e-07]
[1733151331629,0.39741528,96364.0,96363.0,2.3e-07]
[1733151331837,0.34741528,96340.0,96339.0,0.0471]
[1733151332086,0.34741528,96340.0,96332.0,0.0815]
[1733151332087,0.32474521,96333.0,96332.0,0.0815]
[1733151332358,0.65787349,96333.0,96332.0,0.0815]
[1733151334576,0.65987349,96333.0,96332.0,0.0815]
[1733151335913,0.55702828,96333.0,96332.0,0.0815]
[1733151336399,0.75709742,96333.0,96332.0,0.0815]
[1733151336630,0.40504128,96327.0,96326.0,0.0475]
[1733151336849,0.65788649,96327.0,96326.0,0.0475]
[1733151338361,0.40505128,96322.0,96321.0,0.00232155]
[1733151338581,0.50789649,96322.0,96321.0,0.00232155]
[1733151339843,0.50889649,96322.0,96321.0,0.00232155]
[1733151340565,0.65889649,96322.0,96321.0,0.00232155]
[1733151341926,0.65789649,96322.0,96321.0,0.00232155]
[1733151347713,1.06889649,96322.0,96321.0,0.00232155]
[1733151347973,1.17672795,96322.0,96321.0,0.00232155]
[1733151348185,1.17972795,96322.0,96321.0,0.00232155]
[1733151349570,0.90215128,96322.0,96321.0,0.00232155]
[1733151349784,0.66489649,96322.0,96321.0,0.00232155]
[1733151349998,0.86162642,96322.0,96321.0,0.00232155]
[1733151350214,0.66489649,96322.0,96321.0,0.00232155]
[1733151350494,0.86876249,96322.0,96321.0,0.00232155]
[1733151350730,0.97159395,96322.0,96321.0,0.00232155]
[1733151351683,0.75507328,96312.0,96311.0,1.5e-07]
[1733151351896,1.05791849,96312.0,96311.0,9.2e-07]
[1733151352350,0.95508428,96307.0,96306.0,0.7695181]
[1733151352600,2.44085449,96307.0,96306.0,0.74934361]
[1733151352843,2.44342773,96307.0,96306.0,0.74934361]
[1733151353094,2.59959495,96307.0,96306.0,0.74934361]
[1733151353340,2.57942995,96307.0,96306.0,0.74934361]
[1733151353584,1.50002849,96307.0,96306.0,0.74934361]
[1733151353830,0.66592949,96307.0,96306.0,0.74934361]
[1733151354313,0.66565978,96307.0,96306.0,0.83084361]
[1733151354531,0.52065978,96307.0,96306.0,0.83084361]
[1733151355023,0.51265978,96307.0,96306.0,0.83084361]
[1733151355266,0.23833907,96307.0,96306.0,0.83084361]
[1733151355774,0.008,96307.0,96306.0,0.87994361]
[1733151356239,0.207666,96309.0,96306.0,0.87994361]
[1733151356482,0.002,96307.0,96306.0,0.87994361]
[1733151356709,0.004,96307.0,96306.0,0.87994361]
[1733151357391,0.3821395,96310.0,96306.0,0.87994361]
[1733151358131,0.0925036,96367.0,96306.0,0.87994361]
[1733151358132,0.001,96307.0,96306.0,0.87994361]
[1733151358374,0.1744755,96320.0,96306.0,0.87994361]
[1733151358375,0.1744755,96320.0,96308.0,0.1241]
[1733151358617,0.0098513,96326.0,96314.0,0.0476]
[1733151358850,0.0098513,96326.0,96319.0,0.023]
[1733151359325,0.1744755,96328.0,96319.0,0.023]
[1733151359580,0.207626,96327.0,96319.0,0.022]
[1733151360047,0.0758655,96332.0,96319.0,0.022]
[1733151360283,0.250341,96332.0,96322.0,0.0797]
[1733151360526,0.2174135,96339.0,96327.0,0.0496]
[1733151360758,0.0098125,96339.0,96332.0,0.207614]
[1733151361010,0.0098125,96339.0,96312.0,0.17732993]
[1733151361011,0.3820475,96352.0,96340.0,0.207597]
[1733151361254,0.207576,96350.0,96341.0,0.1293]
[1733151361503,0.3820475,96352.0,96342.0,0.023]
[1733151361504,0.207578,96349.0,96342.0,0.023]
[1733151361744,0.207568,96354.0,96342.0,0.022]
[1733151361970,0.207576,96350.0,96342.0,0.022]
[1733151362471,0.1744755,96364.0,96343.0,0.08073696]
[1733151362693,0.1744755,96364.0,96348.0,0.20758]
[1733151362944,0.02267007,96369.0,96352.0,0.0789]
[1733151363168,0.02267007,96369.0,96360.0,0.0789]
[1733151363667,0.207546,96364.0,96360.0,0.0789]
[1733151363903,0.207539,96368.0,96360.0,0.0789]
[1733151364385,0.207546,96364.0,96360.0,0.1075469]
[1733151364605,0.207546,96364.0,96360.0,0.0789]
[1733151364834,0.20754,96367.0,96360.0,0.0789]